bitfinex-derivatives/quotes_BNBF0:USTF0_20250710
["timestamp","ask_amount","ask_price","bid_price","bid_amount"]
[1752180855219,1.65696103,676.81,676.31,0.98815038]
[1752180855521,1.65696103,676.81,676.32,0.98815038]
[1752180855719,1.65696103,676.81,676.33,0.98815038]
[1752180855917,1.65696103,676.81,676.34,0.98815038]
[1752180856115,1.65696103,676.81,676.35,0.98815038]
[1752180856321,1.65696103,676.81,676.36,0.98815038]
[1752180856521,1.65696103,676.81,676.37,0.98815038]
[1752180856718,1.65696103,676.81,676.38,0.98815038]
[1752180856918,1.65696103,676.81,676.39,0.98815038]
[1752180857218,1.65696103,676.81,676.4,0.98815038]
[1752180857421,1.65696103,676.81,676.41,0.98815038]
[1752180857622,1.65696103,676.81,676.42,0.98815038]
[1752180857819,1.65696103,676.81,676.43,0.98815038]
[1752180858021,1.65696103,676.81,676.44,0.98815038]
[1752180858217,1.65696103,676.81,676.45,0.98815038]
[1752180858518,1.65696103,676.81,676.46,0.98815038]
[1752180858718,1.65696103,676.81,676.47,0.98815038]
[1752180858920,1.65696103,676.81,676.48,0.98815038]
[1752180859120,1.65696103,676.81,676.49,0.98815038]
[1752180859422,1.65696103,676.81,676.5,0.98815038]
[1752180859620,1.65696103,676.82,676.51,0.98815038]
[1752180859923,1.65696103,676.81,676.52,0.98815038]
[1752180860120,1.65696103,676.81,676.53,0.98815038]
[1752180860322,1.65696103,676.82,676.54,0.98815038]
[1752180860520,1.65696103,676.82,676.55,0.98815038]
[1752180860724,1.65696103,676.82,676.56,0.98815038]
[1752180861022,1.65696103,676.82,676.57,0.98815038]
[1752180861224,1.65696103,676.81,676.57,0.98815038]
[1752180861525,1.65696103,676.81,676.17,2.08]
[1752180862321,1.65696103,676.82,676.17,2.08]
[1752180864023,1.65696103,676.81,676.17,2.08]
[1752180865327,0.25718435,677.04,676.17,2.08]
[1752180865328,1.65696103,676.82,676.17,2.08]
[1752180865524,1.65696103,676.83,676.17,2.08]
[1752180867027,1.65696103,676.87,676.17,2.08]
[1752180867825,1.65696103,676.86,676.17,2.08]
[1752180874431,1.65696103,676.85,676.17,2.08]
[1752180874833,1.65696103,676.86,676.17,2.08]
[1752180875231,1.65696103,676.85,676.17,2.08]
[1752180876937,1.65696103,676.84,676.17,2.08]
[1752180877837,1.65696103,676.83,676.17,2.08]
[1752180878938,1.65696103,676.82,676.17,2.08]
[1752180879436,1.65696103,676.82,676.14,1.65845361]
[1752180881435,1.65696103,676.81,676.14,1.65845361]
[1752180882442,1.65696103,676.96,676.15,0.98618312]
[1752180882741,1.65696103,676.96,676.16,0.98618312]
[1752180882936,1.65696103,676.96,676.17,0.98618312]
[1752180883240,0.25718435,677.04,676.18,0.98618312]
[1752180883241,1.65696103,676.87,676.18,0.98618312]
[1752180883441,1.65696103,676.87,676.19,0.98618312]
[1752180883640,1.65696103,676.87,676.2,0.98618312]
[1752180883841,1.65696103,676.87,676.21,0.98618312]
[1752180884039,1.65696103,676.87,676.22,0.98618312]
[1752180884243,1.65696103,676.86,676.23,0.98618312]
[1752180884541,1.65696103,676.86,676.24,0.98618312]
[1752180884741,1.65696103,676.86,676.25,0.98618312]
[1752180884942,1.65696103,676.86,676.26,0.98618312]
[1752180885143,1.65696103,676.86,676.27,0.98618312]
[1752180885344,1.65696103,676.85,676.17,2.324]
[1752180887247,1.65696103,676.84,676.17,2.324]
[1752180888648,0.25718435,677.04,676.17,2.324]
[1752180888847,1.65535943,676.82,676.17,2.324]
[1752180890044,1.65535943,676.8,676.17,2.324]
[1752180890247,1.65535943,676.79,676.17,2.324]
[1752180892250,1.65535943,676.72,676.17,2.324]
[1752180892451,1.65535943,676.71,676.17,2.324]
[1752180892652,1.65535943,676.7,676.17,2.324]
[1752180893251,1.65535943,676.69,676.17,2.324]
[1752180893448,1.65535943,676.68,676.17,2.324]
[1752180894354,2.20656748,676.85,676.17,2.324]
[1752180894551,1.65815086,676.67,676.17,2.324]
[1752180895151,1.65815086,676.65,676.17,2.324]
[1752180897257,1.65815086,676.63,676.17,2.324]
[1752180898655,1.65815086,676.62,676.17,2.324]
[1752180901757,1.65815086,676.6,676.17,2.324]
[1752180903559,1.65815086,676.58,676.17,2.324]
[1752180906360,1.65815086,676.59,676.17,2.324]
[1752180910164,1.65815086,676.6,676.17,2.324]
[1752180910864,1.65815086,676.61,676.17,2.324]
[1752180911365,1.65815086,676.62,676.17,2.324]
[1752180911667,1.65815086,676.59,676.17,2.324]
[1752180912066,1.65815086,676.58,676.17,2.324]
[1752180914369,1.65815086,676.59,676.17,2.324]
[1752180918174,1.65815086,676.6,676.17,2.324]
[1752180920678,1.65815086,676.58,676.17,2.324]
[1752180920878,1.65815086,676.57,676.17,2.324]
[1752180921877,1.65815086,676.56,676.17,2.324]
[1752180928578,1.65723765,676.56,676.17,2.324]
[1752180929280,1.65723765,676.57,676.17,2.324]
[1752180931581,1.65723765,676.56,676.17,2.324]
[1752180932883,1.65723765,676.57,676.17,2.324]
[1752180933783,1.65723765,676.55,676.17,2.324]
[1752180937687,1.65723765,676.54,676.17,2.324]
[1752180938683,1.65723765,676.56,676.17,2.324]
[1752180939988,1.65723765,676.57,676.17,2.324]
[1752180940187,1.65723765,676.59,676.17,2.324]
[1752180940389,1.65723765,676.58,676.17,2.324]
[1752180941091,1.65723765,676.58,676.05,1.65523201]
[1752180941389,1.65723765,676.58,676.06,1.65523201]
[1752180942388,1.65723765,676.56,676.07,1.65523201]
[1752180942890,2.20656748,676.69,675.95,2.20535971]
[1752180943089,1.65896335,676.56,676.07,1.65673337]
[1752180943284,1.65896335,676.56,676.08,1.65673337]
[1752180943486,1.65896335,676.56,676.08,3.62473337]
[1752180945191,1.65896335,676.56,676.08,1.968]
[1752180947289,1.65896335,676.56,676.08,3.62473337]
[1752180948693,1.65896335,676.57,676.08,1.968]
[1752180949093,1.65896335,676.56,676.08,1.968]
[1752180952397,1.65896335,676.55,676.08,3.62473337]
[1752180956814,1.65896335,676.56,676.08,1.968]
[1752180957116,1.65896335,676.57,676.08,1.968]
[1752180959215,1.65896335,676.56,676.08,1.968]
[1752180959916,1.65896335,676.55,676.08,1.968]
[1752180960617,1.65896335,676.51,676.08,1.968]
[1752180961616,1.65896335,676.52,676.08,1.968]
[1752180963120,1.65896335,676.51,676.08,1.968]
[1752180963515,1.65896335,676.52,676.08,1.968]
[1752180965921,1.65896335,676.49,676.08,1.968]
[1752180966620,1.65896335,676.56,676.08,1.968]
[1752180966821,1.65896335,676.51,676.08,1.968]
[1752180967821,1.65896335,676.52,676.08,1.968]
[1752180969724,1.65896335,676.49,676.08,1.968]
[1752180969926,1.65896335,676.46,676.08,1.968]
[1752180970527,0.25718435,677.04,676.08,1.968]
[1752180970528,1.65896335,676.43,676.08,1.968]
[1752180970728,1.65896335,676.4,676.08,1.968]
[1752180971324,1.65896335,676.42,676.08,1.968]
[1752180971527,1.65896335,676.43,676.08,1.968]
[1752180971723,1.65896335,676.42,676.08,1.968]
[1752180972628,1.65896335,676.44,676.08,1.968]
[1752180975428,1.65896335,676.44,675.94,1.65673337]
[1752180977324,1.65896335,676.45,675.94,1.65673337]
[1752180978628,1.65896335,676.45,675.95,1.756]
[1752180981527,1.65896335,676.44,675.95,1.756]
[1752180982431,1.65896335,676.44,675.95,3.41273337]
[1752180985031,1.65896335,676.45,675.95,1.756]
[1752180990632,1.65896335,676.46,675.95,1.756]
[1752180995037,1.65896335,676.45,675.95,1.756]
[1752180995636,1.65896335,676.49,675.95,1.756]
[1752180997237,1.65896335,676.5,675.95,1.756]
[1752180997439,1.65896335,676.49,675.95,1.756]
[1752180998144,1.65896335,676.5,675.95,1.756]
[1752180998439,1.65896335,676.49,675.95,1.756]
[1752180998643,1.65896335,676.5,675.95,1.756]
[1752181003144,1.65896335,676.48,675.95,1.756]
[1752181004349,1.65896335,676.47,675.95,1.756]
[1752181005050,1.65896335,676.46,675.95,1.756]
[1752181005250,1.65896335,676.45,675.95,1.756]
[1752181005751,1.65896335,676.46,675.95,1.756]
[1752181006050,1.65896335,676.45,675.95,1.756]
[1752181006251,1.65896335,676.46,675.95,3.41273337]
[1752181008850,1.65896335,676.45,675.95,3.41273337]
[1752181009353,1.65896335,676.45,675.96,1.65673337]
[1752181011254,1.65896335,676.44,675.96,1.65673337]
[1752181012054,1.65896335,676.45,675.97,1.65673337]
[1752181012250,1.6588861,676.45,675.97,1.65683286]
[1752181013149,1.6588861,676.44,675.97,1.65683286]
[1752181014352,1.6588861,676.44,675.98,1.65683286]
[1752181014651,1.6588861,676.48,675.95,1.756]
[1752181015358,1.6588861,676.47,675.95,1.756]
[1752181016157,1.6588861,676.49,675.95,1.756]
[1752181017355,1.6588861,676.48,675.95,3.41283286]
[1752181017856,1.6588861,676.48,675.95,1.756]
[1752181018255,1.6588861,676.47,675.95,3.41283286]
[1752181018656,1.6588861,676.43,676.02,1.65683286]
[1752181018956,0.25727561,676.83,675.91,0.25727561]
[1752181018957,1.6588861,676.42,676.03,1.65683286]
[1752181019353,1.6588861,676.42,676.04,1.65683286]
[1752181020054,1.6588861,676.42,676.03,1.65683286]
[1752181022358,1.6588861,676.42,676.04,1.828]
[1752181024559,1.6588861,676.43,676.04,3.48483286]
[1752181027861,1.6588861,676.46,676.06,1.65683286]
[1752181028762,1.6588861,676.47,676.07,1.65683286]
[1752181030161,0.25727561,676.83,676.08,1.65683286]
[1752181030162,1.6588861,676.46,676.08,1.65683286]
[1752181031663,1.6588861,676.47,676.08,1.65683286]
[1752181032263,1.6588861,676.46,676.08,1.65683286]
[1752181032558,1.6588861,676.47,676.08,1.65683286]
[1752181034462,1.6588861,676.47,676.07,1.65683286]
[1752181037471,1.6588861,676.48,676.07,1.65683286]
[1752181040877,1.6588861,676.48,676.08,2.005]
[1752181041077,1.6588861,676.5,676.08,2.005]
[1752181048375,1.6588861,676.49,676.08,2.005]
[1752181048774,1.6588861,676.54,676.08,2.005]
[1752181049080,1.6588861,676.53,676.08,2.005]
[1752181050177,1.6588861,676.54,676.08,2.005]
[1752181051883,1.6588861,676.53,676.08,2.005]
[1752181052884,1.6588861,676.46,676.08,2.005]
[1752181053585,1.6588861,676.44,676.08,2.005]
[1752181056787,1.6588861,676.44,675.91,0.25727561]
[1752181058687,1.6588861,676.43,675.92,1.65683286]
[1752181058888,1.6588861,676.41,675.95,1.65683286]
[1752181059489,1.6588861,676.42,675.95,1.65683286]
[1752181059683,1.6588861,676.42,675.96,1.471]
[1752181059882,1.6588861,676.42,675.96,3.12783286]
[1752181060087,3.31990788,676.67,675.96,3.12783286]
[1752181060088,1.6588861,676.4,675.98,1.65683286]
[1752181063188,1.6588861,676.41,675.97,1.65683286]
[1752181063384,1.6588861,676.42,675.96,1.471]
[1752181063590,1.6588861,676.43,675.96,1.471]
[1752181064790,1.6588861,676.44,675.96,1.471]
[1752181065589,1.6588861,676.45,675.96,3.12783286]
[1752181065790,1.6588861,676.48,676.0,1.65683286]
[1752181068286,1.6588861,676.48,676.01,1.65683286]
[1752181068492,1.6588861,676.49,676.01,1.65683286]
[1752181073497,1.6588861,676.48,676.02,1.65683286]
[1752181075793,1.6588861,676.47,676.03,1.65683286]
[1752181080602,2.20656748,676.59,675.91,2.46263532]
[1752181080799,1.65979389,676.47,676.03,1.6580729]
[1752181081697,1.65979389,676.48,676.01,1.6580729]
[1752181082401,1.65979389,676.48,676.02,1.6580729]
[1752181082601,1.65979389,676.48,676.02,3.1200729]
[1752181082801,1.65979389,676.48,676.03,1.6580729]
[1752181086200,1.65979389,676.48,676.02,3.1200729]
[1752181086505,1.65979389,676.49,676.02,3.1200729]
[1752181087506,1.65979389,676.49,676.02,1.462]
[1752181091308,1.65979389,676.48,676.02,3.1200729]
[1752181094211,1.65979389,676.51,676.02,1.462]
[1752181097415,1.65979389,676.5,676.02,1.462]
[1752181101413,1.65979389,676.51,676.02,1.462]
[1752181104020,1.65979389,676.48,676.02,3.1200729]
[1752181104820,1.65979389,676.48,676.03,1.6580729]
[1752181107925,1.65979389,676.47,676.03,1.6580729]
[1752181110622,1.65979389,676.47,676.04,3.8200729]
[1752181111124,1.65979389,676.47,676.04,2.162]
[1752181111326,1.65979389,676.47,676.04,3.8200729]
[1752181112328,1.65979389,676.47,676.04,2.162]
[1752181114429,1.65979389,676.47,676.04,3.8200729]
[1752181114625,1.65979389,676.47,676.04,2.162]
[1752181114926,1.65979389,676.48,676.04,2.162]
[1752181115325,1.65979389,676.47,676.04,2.162]
[1752181116931,1.65979389,676.48,676.04,3.8200729]
[1752181117429,1.65979389,676.48,676.04,2.162]
[1752181117633,1.65979389,676.48,676.04,3.8200729]
[1752181117934,1.65979389,676.47,676.05,1.6580729]
[1752181118433,1.65979389,676.47,676.04,2.162]
[1752181118434,1.65979389,676.47,676.04,3.8200729]
[1752181118628,1.65979389,676.48,676.04,3.8200729]
[1752181118833,1.65979389,676.47,676.05,1.6580729]
[1752181119531,1.65979389,676.47,676.04,3.8200729]
[1752181119930,1.65979389,676.47,676.05,1.6580729]
[1752181120432,1.65979389,676.47,676.04,3.8200729]
[1752181120635,1.65979389,676.47,676.05,1.6580729]
[1752181120835,1.65979389,676.47,676.04,3.8200729]
[1752181121035,1.65979389,676.47,676.05,1.6580729]
[1752181121736,1.65979389,676.46,676.06,1.6580729]
[1752181122033,1.66094441,676.46,676.06,1.65918051]
[1752181122437,1.66094441,676.49,676.01,1.65918051]
[1752181122638,1.66094441,676.52,676.04,1.65918051]
[1752181123335,1.66094441,676.51,676.04,1.65918051]
[1752181123536,2.20656748,676.67,676.04,1.65918051]
[1752181123537,1.66094441,676.52,676.04,1.65918051]
[1752181123735,1.66094441,676.52,675.91,0.25727561]
[1752181123736,1.66094441,676.49,676.07,1.65918051]
[1752181123935,1.66094441,676.48,676.09,1.65918051]
[1752181124437,1.66094441,676.48,675.91,0.25727561]
[1752181124438,1.66094441,676.49,676.08,1.65918051]
[1752181124637,1.66094441,676.52,676.15,1.65918051]
[1752181124833,1.66094441,676.53,676.16,1.65918051]
[1752181125539,1.66094441,676.53,676.15,1.65918051]
[1752181126038,1.66094441,676.63,676.22,1.65918051]
[1752181126234,1.66094441,676.63,676.23,1.65918051]
[1752181126434,1.66094441,676.68,676.24,1.65918051]
[1752181127433,1.66094441,676.68,676.16,1.664]
[1752181127434,1.66094441,676.69,676.22,1.65918051]
[1752181127735,1.66094441,676.7,676.21,1.65918051]
[1752181128440,1.66094441,676.71,676.2,1.65918051]
[1752181128642,1.66094441,676.72,676.19,1.65918051]
[1752181129741,0.25720621,677.06,676.18,1.65918051]
[1752181129742,1.66094441,676.73,676.18,1.65918051]
[1752181130538,1.66094441,676.74,676.17,1.65918051]
[1752181131441,1.66094441,676.75,676.16,3.32318051]
[1752181133446,1.66094441,676.76,676.16,1.664]
[1752181135549,1.66094441,676.77,676.16,1.664]
[1752181135745,1.66094441,676.76,676.16,1.664]
[1752181137349,1.66094441,676.77,676.16,1.664]
[1752181137546,1.66094441,676.76,676.16,3.32318051]
[1752181138444,1.66094441,676.75,676.18,1.65918051]
[1752181139444,1.66094441,676.75,676.16,1.664]
[1752181139445,1.66094441,676.75,676.17,1.65918051]
[1752181141149,1.66094441,676.76,676.16,3.32318051]
[1752181145255,1.66094441,676.77,676.16,3.32318051]
[1752181146150,1.66094441,676.77,676.16,1.664]
[1752181151158,1.66094441,676.77,676.16,3.32318051]
[1752181153157,1.66094441,676.77,676.16,1.664]
[1752181155155,1.66094441,676.78,676.16,1.664]
[1752181157165,1.66094441,676.77,676.16,1.664]
[1752181159165,1.66094441,676.77,676.16,3.32318051]
[1752181160666,1.66094441,676.78,676.16,1.664]
[1752181164566,1.66094441,676.79,676.16,1.664]
[1752181166166,1.66094441,676.78,676.16,1.664]
[1752181169671,1.66094441,676.77,676.16,1.664]
[1752181170671,1.66094441,676.76,676.17,1.65918051]
[1752181172469,1.66094441,676.75,676.17,1.65918051]
[1752181173470,1.66094441,676.75,676.18,1.65918051]
[1752181174471,1.66094441,676.74,676.19,1.65918051]
[1752181175376,1.66094441,676.74,676.16,1.664]
[1752181175377,1.66094441,676.73,676.2,1.65918051]
[1752181177181,1.66094441,676.73,676.21,1.65918051]
[1752181177381,1.66094441,676.72,676.21,1.65918051]
[1752181178376,1.66094441,676.71,676.21,1.65918051]
[1752181178581,1.66094441,676.71,676.22,1.65918051]
[1752181180382,1.66094441,676.7,676.23,1.65918051]
[1752181180982,1.66094441,676.7,676.22,1.65918051]
[1752181181179,1.66094441,676.71,676.21,1.65918051]
[1752181181481,1.66094441,676.7,676.22,1.65918051]
[1752181182082,1.66094441,676.7,676.09,2.20535971]
[1752181182083,1.66094441,676.7,676.21,1.65918051]
[1752181182578,1.66094441,676.69,676.22,1.65918051]
[1752181182783,1.66094441,676.69,676.22,3.21518051]
[1752181183082,1.66094441,676.7,676.22,1.556]
[1752181183482,1.66094441,676.69,676.22,3.21518051]
[1752181184479,1.66094441,676.67,676.24,1.65918051]
[1752181184881,1.66094441,676.67,676.23,1.65918051]
[1752181185179,1.66094441,676.67,676.24,1.65918051]
[1752181185382,1.66094441,676.65,676.25,1.65918051]
[1752181186379,1.66094441,676.65,676.26,1.65918051]
[1752181189685,1.66094441,676.71,676.22,1.556]
[1752181190085,1.66094441,676.72,676.22,1.556]
[1752181190286,1.66094441,676.68,676.22,1.556]
[1752181190485,1.66094441,676.7,676.22,1.556]
[1752181192783,2.20656748,676.88,676.22,1.556]
[1752181192784,1.66094441,676.69,676.22,1.556]
[1752181193989,1.66094441,676.7,676.22,1.556]
[1752181195591,1.66094441,676.69,676.22,1.556]
[1752181196991,1.66094441,676.59,676.22,1.556]
[1752181197288,1.66094441,676.54,676.22,1.556]
[1752181197487,1.66094441,676.53,676.22,1.556]
[1752181197993,1.66094441,676.52,676.22,1.556]
[1752181198292,1.66094441,676.54,676.22,1.556]
[1752181199294,1.66094441,676.56,676.22,1.556]
[1752181200293,1.66094441,676.57,676.22,1.556]
[1752181200593,1.66094441,676.58,676.22,1.556]
[1752181201090,1.66094441,676.54,676.22,1.556]
[1752181201293,0.25720621,677.06,676.22,1.556]
[1752181201294,1.66094441,676.49,676.22,1.556]
[1752181201794,1.66094441,676.47,676.22,1.556]
[1752181202391,1.66094441,676.46,676.22,1.556]
[1752181203395,1.66094441,676.47,676.22,1.556]
[1752181204692,1.66094441,676.48,676.22,1.556]
[1752181204896,1.66094441,676.46,676.22,1.556]
[1752181205098,1.66094441,676.42,676.22,1.556]
[1752181205497,1.66094441,676.44,676.22,1.556]
[1752181205695,1.66094441,676.43,676.22,1.556]
[1752181205896,1.66094441,676.44,676.22,1.556]
[1752181206997,1.66094441,676.42,676.22,1.556]
[1752181207393,1.66094441,676.47,676.22,1.556]
[1752181207598,1.66094441,676.48,676.22,1.556]
[1752181208296,1.66094441,676.47,676.22,1.556]
[1752181208495,1.66094441,676.49,676.22,1.556]
[1752181209498,1.66094441,676.5,676.22,1.556]
[1752181209696,1.66094441,676.45,676.22,1.556]
[1752181209901,1.66094441,676.35,676.22,1.556]
[1752181210102,1.66094441,676.36,676.22,1.556]
[1752181210502,1.66094441,676.37,676.22,1.556]
[1752181210903,1.66094441,676.33,676.22,1.556]
[1752181211603,1.66094441,676.35,676.22,1.556]
[1752181212609,1.66094441,676.36,676.22,1.556]
[1752181213103,1.66094441,676.37,676.22,1.556]
[1752181213507,1.66094441,676.38,676.22,1.556]
[1752181214508,1.66094441,676.39,676.22,1.556]
[1752181215406,1.66094441,676.4,676.22,1.556]
[1752181216311,1.66094441,676.41,676.22,1.556]
[1752181217007,1.66094441,676.4,676.22,1.556]
[1752181217510,1.66094441,676.41,676.22,1.556]
[1752181218612,1.66094441,676.42,676.22,1.556]
[1752181219514,1.66094441,676.4,676.22,1.556]
[1752181219712,1.66094441,676.39,676.22,1.556]
[1752181220210,1.66094441,676.38,676.22,1.556]
[1752181220414,2.20656748,676.5,676.22,1.556]
[1752181220415,1.66094441,676.39,676.22,1.556]
[1752181220717,1.66094441,676.38,676.22,1.556]
[1752181221309,2.20656748,676.51,676.22,1.556]
[1752181221310,1.66094441,676.39,676.22,1.556]
[1752181223514,1.66094441,676.4,676.22,1.556]
[1752181223712,1.66094441,676.39,676.22,1.556]
[1752181225514,1.66094441,676.4,676.22,1.556]
[1752181227715,1.66094441,676.41,676.22,1.556]
[1752181228515,1.66094441,676.42,676.22,1.556]
[1752181228714,1.66094441,676.42,675.74,0.25730129]
[1752181229215,1.66094441,676.43,675.74,0.25730129]
[1752181229913,1.66094441,676.44,675.74,0.25730129]
[1752181230116,1.66094441,676.43,675.74,0.25730129]
[1752181230617,1.66094441,676.47,675.74,0.25730129]
[1752181230814,1.66094441,676.46,675.74,0.25730129]
[1752181231017,1.66094441,676.43,675.74,0.25730129]
[1752181231513,1.66094441,676.42,675.74,0.25730129]
[1752181231916,1.66094441,676.43,675.74,0.25730129]
[1752181232113,1.66094441,676.42,675.74,0.25730129]
[1752181232313,1.66094441,676.42,675.75,1.498]
[1752181233315,1.66094441,676.43,675.75,1.498]
[1752181234017,1.66094441,676.44,675.75,1.498]
[1752181234215,1.66094441,676.43,675.75,1.498]
[1752181234820,1.66094441,676.44,675.75,1.498]
[1752181235017,1.66094441,676.45,675.75,1.498]
[1752181235225,1.66094441,676.51,675.75,1.498]
[1752181235818,1.66094441,676.52,675.75,1.498]
[1752181236022,1.66094441,676.51,675.75,1.498]
[1752181236624,1.66094441,676.5,675.75,1.498]
[1752181237120,1.66094441,676.51,675.75,1.498]
[1752181237319,1.66094441,676.5,675.75,1.498]
[1752181238928,1.66094441,676.52,675.75,1.498]
[1752181240429,1.66094441,676.51,675.75,1.498]
[1752181242230,1.66094441,676.5,675.75,1.498]
[1752181244227,1.66094441,676.49,675.75,1.498]
[1752181245231,1.66094441,676.48,675.75,1.498]
[1752181245728,1.66094441,676.47,675.75,1.498]
[1752181246534,1.66094441,676.46,675.75,1.498]
[1752181246937,0.25720621,677.06,675.75,1.498]
[1752181246938,1.66094441,676.45,675.75,1.498]
[1752181247537,1.66094441,676.44,675.75,1.498]
[1752181248033,1.66094441,676.45,675.75,1.498]
[1752181248238,1.66094441,676.44,675.75,1.498]
[1752181249337,0.25720621,677.06,675.75,1.498]
[1752181249338,1.66094441,676.45,675.75,1.498]
[1752181250233,1.66094441,676.44,675.75,1.498]
[1752181250435,1.66094441,676.43,675.75,1.498]
[1752181251336,1.66094441,676.42,675.75,1.498]
[1752181252137,1.66094441,676.41,675.75,1.498]
[1752181252742,1.66094441,676.4,675.75,1.498]
[1752181253142,1.66094441,676.41,675.75,1.498]
[1752181254144,1.66094441,676.39,675.75,1.498]
[1752181255246,1.66094441,676.37,675.75,1.498]
[1752181255446,1.66094441,676.4,675.75,1.498]
[1752181256141,1.66094441,676.38,675.75,1.498]
[1752181256845,1.66094441,676.43,675.75,1.498]
[1752181257045,1.66094441,676.46,675.75,3.15718051]
[1752181257246,1.66094441,676.45,675.76,1.65918051]
[1752181257642,1.66094441,676.46,675.75,3.15718051]
[1752181258145,1.66094441,676.45,675.76,1.65918051]
[1752181259147,1.66094441,676.44,675.77,1.65918051]
[1752181261043,1.66094441,676.45,675.76,1.65918051]
[1752181261842,1.66094441,676.45,675.77,1.65918051]
[1752181262250,1.66094441,676.45,675.76,1.65918051]
[1752181265351,1.66094441,676.44,675.78,1.65918051]
[1752181266251,1.66094441,676.44,675.77,1.65918051]
[1752181266451,1.66094441,676.44,675.78,1.65918051]
[1752181266751,1.66094441,676.43,675.78,1.65918051]
[1752181267052,1.66094441,676.44,675.78,1.65918051]
[1752181267452,1.66094441,676.43,675.78,1.65918051]
[1752181268249,1.66094441,676.44,675.78,1.65918051]
[1752181270052,2.20656748,676.58,675.75,1.498]
[1752181270750,3.31990788,676.72,675.75,1.498]
[1752181271149,0.25720621,677.06,675.75,1.498]
[1752181272853,1.65613329,676.41,675.82,1.65580146]
[1752181273356,1.65613329,676.41,675.81,1.65580146]
[1752181273555,1.65613329,676.42,675.82,1.65580146]
[1752181274858,1.65613329,676.42,675.83,1.65580146]
[1752181276053,1.65613329,676.43,675.82,1.65580146]
[1752181277755,1.65613329,676.46,675.78,1.65580146]
[1752181279457,1.65613329,676.47,675.77,1.65580146]
[1752181284063,1.65613329,676.46,675.77,1.65580146]
[1752181284464,1.65613329,676.44,675.81,1.65580146]
[1752181285859,1.65613329,676.44,675.82,1.65580146]
[1752181286064,1.65613329,676.45,675.83,1.65580146]
[1752181286561,1.65613329,676.44,675.86,1.65580146]
[1752181288364,1.65613329,676.43,675.86,1.65580146]
[1752181289063,1.65613329,676.44,675.86,1.65580146]
[1752181289464,1.65613329,676.43,675.86,1.65580146]
[1752181289861,1.65613329,676.43,675.87,2.338]
[1752181290463,1.65613329,676.43,675.87,3.99380146]
[1752181290764,1.65613329,676.42,675.88,1.65580146]
[1752181291861,1.65613329,676.51,675.97,1.65580146]
[1752181292161,1.65613329,676.52,675.97,1.65580146]
[1752181292364,1.65613329,676.51,675.97,1.65580146]
[1752181293161,1.65613329,676.53,675.96,1.65580146]
[1752181293668,3.31226659,676.77,675.96,1.65580146]
[1752181293669,1.65613329,676.52,675.96,1.65580146]
[1752181294665,1.65613329,676.57,675.9,1.65580146]
[1752181295263,1.65613329,676.57,675.89,1.65580146]
[1752181296870,1.65613329,676.58,675.88,1.65580146]
[1752181301373,1.65613329,676.58,675.87,3.99380146]
[1752181301571,1.65613329,676.59,675.88,1.65580146]
[1752181302067,1.65613329,676.59,675.87,3.99380146]
[1752181302270,1.65613329,676.6,675.87,3.99380146]
[1752181302474,1.65613329,676.59,675.87,3.99380146]
[1752181302771,1.65613329,676.6,675.88,1.65580146]
[1752181303072,1.65613329,676.59,675.88,1.65580146]
[1752181303272,1.65613329,676.6,675.88,1.65580146]
[1752181303471,1.65613329,676.59,675.88,1.65580146]
[1752181303967,1.65613329,676.6,675.88,1.65580146]
[1752181304172,1.65613329,676.6,675.87,3.99380146]
[1752181304368,1.65613329,676.58,675.9,1.65580146]
[1752181306672,1.65613329,676.57,675.91,1.65580146]
[1752181306870,1.65647815,676.57,675.91,1.65530171]
[1752181308972,1.65647815,676.58,675.9,1.65530171]
[1752181309472,1.65647815,676.58,675.91,1.65530171]
[1752181309675,1.65647815,676.57,675.91,1.65530171]
[1752181309873,1.65647815,676.58,675.91,1.65530171]
[1752181310277,1.65647815,676.57,675.92,1.65530171]
[1752181311873,0.25720621,677.06,675.87,2.338]
[1752181311874,1.65647815,676.56,675.93,1.65530171]
[1752181312476,1.65647815,676.56,675.94,1.65530171]
[1752181313275,1.65647815,676.57,675.92,1.65530171]
[1752181314178,1.65647815,676.56,675.93,1.65530171]
[1752181315182,1.65647815,676.55,675.94,1.65530171]
[1752181316378,1.65647815,676.55,675.95,1.65530171]
[1752181317687,1.65647815,676.55,675.94,1.65530171]
[1752181318988,1.65647815,676.54,675.95,1.65530171]
[1752181321084,1.65647815,676.52,675.98,1.65530171]